Cogmind - Beta 15 @@@ ROGUE MODE // 2025.06.14 @ 19:54:16 Player: Fleshy Vegetable Bird Result: Destroyed by S-43 Plague with Heavy Machine Gun Performance ------------- Evolutions (8) 4000 Regions Visited (12) 2400 Robots Destroyed (54) 270 Value Destroyed (1307) 1307 Prototype IDs (22) 440 Alien Tech Used (1) 200 Bonus (1229) 1229 TOTAL SCORE: 9846 Bonus ------- High Alert Combat Kills 8 Follower Combat Kills 121 Registered with UFD 300 Met Optimus in HQ 500 Met Zhirov 300 Cogmind --------- Core Integrity 0/1450 Matter 300/300 Energy 98/100 System Corruption 5% Temperature Cool (0) Movement Core (50) Location -2/Research Parts ------- > --- POWER (2) -------- (None) > --- PROPULSION (7) --- (None) > --- UTILITY (10) ----- (None) > --- WEAPON (4) ------- (None) > --- INVENTORY (5) ---- Medium Storage Unit Advanced Energy Well (500) Enhanced Scrap Shield Vibroblade Peak State ------------ > --- POWER ------------ Light Antimatter Reactor Light Antimatter Reactor > --- PROPULSION ------- Cooled Airjet Improved Gravmag System Antigrav System Antigrav System Antigrav System Improved Antigrav System > --- UTILITY ---------- Medium Storage Unit Machine Analyzer Advanced Terrain Scanner Advanced Terrain Scan Processor Advanced Targeting Computer Advanced Melee Analysis Suite Improved Target Analyzer > --- WEAPON ----------- Phase Gun Railgun Falx Vibroblade > --- INVENTORY -------- Micro Fission Core Cooled Airjet Advanced Energy Well Improved Reaction Control System Enhanced Scrap Shield HERF Cannon Vibroblade Vibroblade DRS Beacon [Rating: 108] Favorites ----------- Power Improved Deuterium Engine Engine Improved Deuterium Engine Power Core Micro Fission Core Reactor Light Antimatter Reactor Propulsion Armored Huge Wheel Treads Light Treads Wheel Armored Huge Wheel Hover Unit Antigrav System Flight Unit Cooled Nuclear Pulse Thruster Utility Large Storage Unit Device Improved Terrain Scanner Storage Large Storage Unit Processor Advanced Terrain Scan Processor Hackware Advanced System Shield Protection Experimental Weapon Shielding Weapon Heavy Plasma Cannon Energy Gun Plasma Rifle Energy Cannon Heavy Plasma Cannon Ballistic Gun Light Assault Rifle Ballistic Cannon Gauss Cannon Slashing Weapon Vibroblade Piercing Weapon Spear Build | -11 -10 -10 -7 -7 -5 -4 -4 -4 -4 -3 -3 -2 ------- Run | Yrd Mat Sub Rec Scr Fac Fac Upp Upp Zhi Pro Res Res Slots Evolved 16 | . . . . . 10 2 . . . . 2 2 Power 1 | . . . . . . 1 . . . . . . Propulsion 5 | . . . . . 3 1 . . . . . 1 Utility 8 | . . . . . 5 . . . . . 2 1 Weapon 2 | . . . . . 2 . . . . . . . Parts Attached 106 | 7 1 16 1 10 38 8 4 1 10 2 8 . Power 16 | 1 . 3 1 2 3 2 2 1 1 . . . Engine 8 | 1 . 3 1 2 . 1 . . . . . . Core 5 | . . . . . 3 1 . 1 . . . . Reactor 3 | . . . . . . . 2 . 1 . . . Propulsion 31 | 2 . 8 . 1 12 1 1 . 4 . 2 . Treads 6 | . . 2 . . 4 . . . . . . . Leg . | . . . . . . . . . . . . . Wheel 10 | 2 . 6 . 1 1 . . . . . . . Hover 10 | . . . . . 7 1 1 . 1 . . . Flight 5 | . . . . . . . . . 3 . 2 . Utility 37 | 2 1 1 . 5 16 3 . . 4 2 3 . Device 17 | 1 . 1 . 4 8 . . . 1 1 1 . Storage 6 | 1 1 . . 1 1 2 . . . . . . Processor 9 | . . . . . 6 1 . . . 1 1 . Hackware 3 | . . . . . 1 . . . 1 . 1 . Protection 2 | . . . . . . . . . 2 . . . Artifact . | . . . . . . . . . . . . . Weapon 22 | 2 . 4 . 2 7 2 1 . 1 . 3 . Energy Gun 5 | 1 . 1 . 1 1 1 . . . . . . Energy Cannon 5 | . . 2 . 1 1 . . . . . 1 . Ballistic Gun 4 | 1 . . . . 2 . 1 . . . . . Ballistic Cannon 1 | . . . . . 1 . . . . . . . Launcher . | . . . . . . . . . . . . . Special Weapon . | . . . . . . . . . . . . . Impact Weapon . | . . . . . . . . . . . . . Slashing Weapon 5 | . . . . . 1 1 . . 1 . 2 . Piercing Weapon 2 | . . 1 . . 1 . . . . . . . Special Melee Weapon . | . . . . . . . . . . . . . Unidentified Prototypes 12 | . . . . . 2 2 . . 6 . 2 . Parts Lost 34 | . . 1 . . 12 . 5 5 . . 10 1 Power 4 | . . 1 . . 1 . 2 . . . . . Propulsion 15 | . . . . . 3 . 2 4 . . 6 . Utility 11 | . . . . . 4 . 1 1 . . 4 1 Weapon 4 | . . . . . 4 . . . . . . . Highest Loss Streak 10 | . . 1 . . 7 . 5 10 . . 5 1 To Critical Strikes . | . . . . . . . . . . . . . Average Backups 7 | 1 5 9 9 7 10 8 8 5 3 4 4 4 Power . | . 1 1 2 . 1 . 1 . . . . . Propulsion 1 | . 3 3 . . . . 1 . . . . . Utility 2 | . . . 3 2 4 3 2 2 2 2 2 3 Weapon 2 | . 1 3 4 2 1 3 3 2 1 2 1 1 Tool/Special . | . . . . . . . . . . . . . Unused Backups 74 | . . 2 . 47 17 3 2 2 . . . 1 Power 11 | . . . . 8 3 . . . . . . . Propulsion 6 | . . . . 4 1 . . 1 . . . . Utility 36 | . . . . 23 10 2 . . . . . 1 Weapon 18 | . . 2 . 11 2 1 1 1 . . . . Tool/Special 3 | . . . . 1 1 . 1 . . . . . Average Slot Usage (%) 67 | . 100 99 100 56 76 94 94 46 30 52 51 1 Engine 7 | . 14 13 14 9 3 2 . . . . . . Treads 2 | . . 15 . . 4 . . . . . . . Wheel 12 | . 28 13 28 15 7 . . . . . . . Hover 2 | . . . . . 5 30 29 8 1 5 1 . Device 9 | . 14 14 14 7 16 5 5 5 5 5 6 . Storage 8 | . 14 14 14 10 5 5 5 1 . . . . Processor 4 | . . . . . 12 24 25 18 15 14 14 1 Energy Gun 6 | . 14 11 14 6 6 3 5 1 . . . . Energy Cannon 5 | . . 12 14 6 4 . . . . . 2 . Ballistic Gun 1 | . 14 2 . . . 3 2 2 . . . . Peak Build Rating 108 | 7 8 15 15 35 87 99 108 83 70 67 97 9 Average Rating 30 | 5 7 10 15 16 62 93 102 47 32 63 69 2 On Entrance 38 | . 7 8 15 15 30 87 99 77 20 63 64 9 Naked Turns 436 | . . . . 312 . . . . . . . 124 Heaviest Build 65 | 14 19 29 29 45 65 41 55 36 19 20 20 . Greatest Support 67 | 20 20 40 20 28 58 67 67 45 18 18 27 3 Greatest Overweight (x) 2 | . . 2 1 1 2 . . 1 1 1 1 . Average Overweight (x) . | . . . 1 . . . . . . . . . Largest Inventory Capacity 15 | 8 10 10 10 15 15 10 10 10 5 5 5 5 Average Capacity 10 | 7 9 10 10 11 12 9 10 6 5 5 5 5 Most Carried 15 | 6 10 10 10 15 15 10 10 10 5 5 5 5 Average Carried 8 | 1 5 9 10 8 11 9 9 6 4 4 4 5 Final Capacity 15 | 8 10 10 10 15 5 10 10 5 5 5 5 5 Final Carried 14 | 5 10 10 10 14 5 10 10 5 4 5 5 5 Class Distribution -------------------- 53% | Mutant 25% | Scavenger-Mutant 7% | Derelict-Skirmisher Dominant Class ---------------- Mutant | -10/Materials Scavenger-Mutant | -10/Subcaves Scavenger-Mutant | -7/Recycling Mutant | -7/Scraptown Derelict-Skirmisher | -5/Factory Scavenger-Scout | -4/Factory Derelict-Scout | -4/Upper Caves Mutant | -4/Upper Caves Mutant | -4/Zhirov Sprinter | -3/Proximity Caves Hacker-Assassin | -3/Research Mutant | -2/Research Resources | -11 -10 -10 -7 -7 -5 -4 -4 -4 -4 -3 -3 -2 ----------- Run | Yrd Mat Sub Rec Scr Fac Fac Upp Upp Zhi Pro Res Res Matter Collected 1515 | 295 35 143 . 104 321 52 203 . 131 105 126 . Remotely . | . . . . . . . . . . . . . Salvage Created 2447 | 222 301 278 . . 771 163 12 . 466 . 234 . Parts 138 | 21 34 15 . . 41 9 1 . 3 . 14 . Haulers Intercepted 5 | . 2 . . . 1 1 . . . . 1 . Recyclers Shooed 2 | . . . . . 1 . . . . . . 1 Parts Field Recycled 7 | . . . . 7 . . . . . . . . Retrieved Matter 210 | . . . . 210 . . . . . . . . Parts Self-Destructed 22 | . . 4 . . . . 3 11 2 2 . . Prevented 4 | . . . . . . . . 4 . . . . Kills | -11 -10 -10 -7 -7 -5 -4 -4 -4 -4 -3 -3 -2 ------- Run | Yrd Mat Sub Rec Scr Fac Fac Upp Upp Zhi Pro Res Res Combat Hostiles Destroyed 31 | . 10 9 . . 9 . . . . . 3 . Melee 4 | . . . . . 1 . . . . . 3 . Guns 23 | . 10 8 . . 5 . . . . . . . Cannons 1 | . . . . . 1 . . . . . . . AOE 2 | . . . . . 2 . . . . . . . Classes Destroyed 15 | 3 4 2 . . 4 . . . . . 2 . Worker 4 | 1 . . . . . 3 . . . . . . Builder 1 | . . . . . 1 . . . . . . . Tunneler 7 | 5 1 . . . 1 . . . . . . . Hauler 5 | . 2 . . . 1 1 . . . . 1 . Recycler 2 | 1 . . . . 1 . . . . . . . Operator 1 | . . . . . . . . . . . 1 . Turret 1 | . . 1 . . . . . . . . . . Watcher 2 | . 1 . . . 1 . . . . . . . Swarmer 13 | . 9 4 . . . . . . . . . . Cutter 3 | . . . . . . . . . . . 3 . Grunt 4 | . 1 . . . 3 . . . . . . . Sentry 1 | . . . . . 1 . . . . . . . Hunter 1 | . . . . . 1 . . . . . . . Programmer 4 | . . . . . 4 . . . . . . . Subdweller 5 | . . 5 . . . . . . . . . . Decomposer 1 | . . . . . . . 1 . . . . . Best Kill Streak 9 | 6 9 4 . . 3 2 . . . . 2 . Combat Bots Only 7 | . 7 4 . . 3 . . . . . 2 . Max Kills in Single Turn 3 | 1 1 1 . . 3 1 1 . . . 1 . Gunslinging . | . . . . . . . . . . . . . Exploded 2 | . . . . . 2 . . . . . . . Melee 1 | . . . . . 1 . . . . . 1 . Uniques/NPCs Destroyed . | . . . . . . . . . . . . . Combat | -11 -10 -10 -7 -7 -5 -4 -4 -4 -4 -3 -3 -2 -------- Run | Yrd Mat Sub Rec Scr Fac Fac Upp Upp Zhi Pro Res Res Hostile Shots Fired 626 | . 24 63 . . 171 10 33 54 . 2 144 125 Missed 248 | . 8 21 . . 53 6 11 23 . 2 64 60 Hits 378 | . 16 42 . . 118 4 22 31 . . 80 65 Melee 9 | . . . . . . . . . . . 9 . Projectile 369 | . 16 42 . . 118 4 22 31 . . 71 65 AOE 1 | . . . . . . . . . . . 1 . Critical Strikes 9 | . . . . . 4 . . 1 . . 3 1 Actively Blocked 1 | . . . . . . . . . . . 1 . Damage Taken 7279 | . 125 596 . . 2101 80 611 621 . 32 1642 1471 Core 3574 | . 24 126 . . 448 16 30 342 . . 1119 1469 Absorbed by Shields . | . . . . . . . . . . . . . Redirected to Shielding 99 | . . . . . . . . . . . 99 . Core Remaining (%) 54 | 100 . . . 40 55 . . . . 66 13 . Volleys Fired 137 | 25 25 28 . . 59 . . . . . . . Largest 4 | 2 2 2 . . 4 . . . . . . . Hottest 355 | 70 70 140 . . 355 . . . . . . . Shots Fired 278 | 50 50 56 . . 122 . . . . . . . Gun 200 | 50 50 42 . . 58 . . . . . . . Cannon 78 | . . 14 . . 64 . . . . . . . Launcher . | . . . . . . . . . . . . . Special . | . . . . . . . . . . . . . Kinetic 69 | 25 25 15 . . 4 . . . . . . . Thermal 209 | 25 25 41 . . 118 . . . . . . . Explosive . | . . . . . . . . . . . . . Electromagnetic . | . . . . . . . . . . . . . Robot Hit Streak 25 | 4 6 25 . . 16 . . . . . . . Robot Miss Streak 6 | 4 2 3 . . 6 . . . . . . . Penetration Max . | . . . . . . . . . . . . . Secondary Targets 3 | . . 3 . . . . . . . . . . Max Gunslinging Chain 1 | . . 1 . . . . . . . . . . Shots Hit Robots 173 | 22 32 40 . . 47 11 1 . 13 . 7 . Core Hits 80 | 10 19 16 . . 28 1 . . 2 . 4 . Critical Kills 2 | . 1 1 . . . . . . . . . . Critical Parts Destroyed 1 | . . 1 . . . . . . . . . . Critical Strikes 13 | 2 4 3 . . 2 1 . . . . 1 . Burn 8 | 2 3 1 . . 2 . . . . . . . Meltdown 1 | . . 1 . . . . . . . . . . Destroy 2 | . 1 1 . . . . . . . . . . Sever 2 | . . . . . . 1 . . . . 1 . Melee Attacks 113 | . . 6 . . 24 34 12 . 13 . 24 . Impact . | . . . . . . . . . . . . . Slashing 83 | . . . . . . 34 12 . 13 . 24 . Piercing 30 | . . 6 . . 24 . . . . . . . Sneak Attacks 7 | . . . . . . 5 1 . . . 1 . Combat Hostiles . | . . . . . . . . . . . . . Follow-up Attacks 3 | . . . . . . 2 1 . . . . . Damage Inflicted 6034 | 265 355 617 . . 1738 904 101 . 1499 . 543 12 Guns 1760 | 265 355 368 . . 772 . . . . . . . Cannons 834 | . . 249 . . 585 . . . . . . . Explosions 287 | . . . . . 287 . . . . . . . Melee 3110 | . . . . . 63 904 101 . 1499 . 543 . Ramming 43 | . . . . . 31 . . . . . . 12 Kinetic 419 | 88 126 70 . . 135 . . . . . . . Thermal 2175 | 177 229 547 . . 1222 . . . . . . . Explosive 287 | . . . . . 287 . . . . . . . Electromagnetic . | . . . . . . . . . . . . . Impact . | . . . . . . . . . . . . . Slashing 3047 | . . . . . . 904 101 . 1499 . 543 . Piercing 63 | . . . . . 63 . . . . . . . Highest Corruption 16 | . . . . . 5 . 11 16 16 16 5 5 Average Corruption 6 | . . . . . 2 . 11 14 16 16 5 5 Corruption Purged . | . . . . . . . . . . . . . Corruption Blocked . | . . . . . . . . . . . . . Effects 25 | . . . . . 10 . . 4 4 5 1 1 Message Errors 5 | . . . . . 3 . . 1 1 . . . Matter Fused 3 | . . . . . 1 . . . 1 . 1 . Heat Flow Errors 2 | . . . . . . . . 1 . 1 . . Energy Discharges 4 | . . . . . 1 . . . . 2 . 1 Parts Rejected 1 | . . . . . 1 . . . . . . . Parts Fused 1 | . . . . . 1 . . . . . . . Data Loss (minor) 4 | . . . . . 1 . . 2 1 . . . Data Loss (major) 3 | . . . . . 2 . . . 1 . . . Misdirections 2 | . . . . . . . . . . 2 . . Overload Shots 4 | . . . . . 4 . . . . . . . Overflow Damage 1082 | . . . . . 3 281 83 . 623 . 92 . Projectiles 3 | . . . . . 3 . . . . . . . Explosions . | . . . . . . . . . . . . . Melee 1079 | . . . . . . 281 83 . 623 . 92 . Knockbacks 1 | . . . . . 1 . . . . . . . Impact . | . . . . . . . . . . . . . Kinetic 1 | . . . . . 1 . . . . . . . Secondary . | . . . . . . . . . . . . . Self-Inflicted Damage 137 | . . . . . 132 . . . . . . 5 Shots 2 | . . . . . 2 . . . . . . . Rammed 7 | . . . . . 4 . . . . . . 3 Targets Rammed 7 | . . . . . 4 . . . . . . 3 Kicked . | . . . . . . . . . . . . . Crushed . | . . . . . . . . . . . . . Highest Temperature 809 | 200 80 18 . . 809 98 184 207 . 159 8 . Average Temperature 99 | 78 32 5 . . 148 56 65 102 . 93 7 . Received Heat Transfer 498 | . . 96 . . 141 . . 54 . . 153 54 Effects 15 | . . . . . 15 . . . . . . . Shutdowns 1 | . . . . . 1 . . . . . . . Energy Bleed 3 | . . . . . 3 . . . . . . . Interference 3 | . . . . . 3 . . . . . . . Matter Decay 1 | . . . . . 1 . . . . . . . Short Circuit 1 | . . . . . 1 . . . . . . . Damage (minor) 3 | . . . . . 3 . . . . . . . Damage (major) 2 | . . . . . 2 . . . . . . . Damage (core) 1 | . . . . . 1 . . . . . . . Siege Activations . | . . . . . . . . . . . . . Martial Activations . | . . . . . . . . . . . . . Shielding Activations . | . . . . . . . . . . . . . Robots Disrupted . | . . . . . . . . . . . . . Combat Hostiles . | . . . . . . . . . . . . . Robots Corrupted . | . . . . . . . . . . . . . Combat Hostiles . | . . . . . . . . . . . . . Parts Fried . | . . . . . . . . . . . . . Impact Corruptions . | . . . . . . . . . . . . . Robots Melted 1 | . . 1 . . . . . . . . . . Combat Hostiles 1 | . . 1 . . . . . . . . . . Parts Melted 14 | . 3 3 . . 8 . . . . . . . Heat Transferred 4933 | 666 888 1198 . . 2181 . . . . . . . Parts Sabotaged . | . . . . . . . . . . . . . Parts Stolen . | . . . . . . . . . . . . . Parts Stripped . | . . . . . . . . . . . . . Power Chain Reactions . | . . . . . . . . . . . . . Alert | -11 -10 -10 -7 -7 -5 -4 -4 -4 -4 -3 -3 -2 ------- Run | Yrd Mat Sub Rec Scr Fac Fac Upp Upp Zhi Pro Res Res Maximum Alert Level 3 | . 1 . . . 1 . . . . . 3 2 Low Security (%) 70 | 100 88 . 100 . 77 100 . . . . . . Level 1 22 | . 11 . . . 22 . . . . . 69 17 Level 2 7 | . . . . . . . . . . . 27 82 Level 3 . | . . . . . . . . . . . 2 . Level 4 . | . . . . . . . . . . . . . Level 5 . | . . . . . . . . . . . . . High Security . | . . . . . . . . . . . . . Max Security . | . . . . . . . . . . . . . Peak Influence 745 | 20 222 . 14 . 251 116 . . . . 745 629 Initial 413 | . . . . . . 110 . . . . 300 413 Average 155 | 5 137 . . . 114 78 . . . . 380 471 Influence Increases 3052 | 35 379 145 14 . 879 149 90 45 15 . 1015 286 Destroy 0b10 Robot/C 640 | . 200 100 . . 260 . . . . . 80 . Destroy 0b10 Robot/NC 125 | 35 20 . . . 25 20 . . 15 . 10 . Destroy Leader 114 | . 36 . . . 64 2 . . . . 12 . Allied During Kill 14 | . . . . . 12 . . . . . 2 . Successful Hack 75 | . 18 . 14 . 24 3 . . . . . 16 Disable Machine 90 | . . . . . 75 15 . . . . . . Destroy Structure 224 | . . . . . 164 34 . . . . 26 . Advance Influence 300 | . . . . . . . . . . . 300 . Partial Spotted 135 | . . . . . 15 60 . . . . 45 15 Lose Combat Pursuer 1335 | . 105 45 . . 240 15 90 45 . . 540 255 Influence Decreases 2433 | 35 201 323 14 . 652 360 86 30 50 . 280 402 Entered New Map 571 | . . 86 . . . 117 7 4 35 . . 322 Time Decay 1378 | 35 201 227 14 . 447 140 29 20 15 . 180 70 Lost Part 243 | . . 10 . . 67 . 50 6 . . 100 10 Lost Ally 20 | . . . . . 20 . . . . . . . Purge Threat 221 | . . . . . 118 103 . . . . . . Squads Dispatched 28 | . 1 . . . 10 6 . . . . 7 4 Investigation 15 | . 1 . . . 7 3 . . . . 3 1 Extermination 6 | . . . . . 3 1 . . . . 2 . Reinforcement 4 | . . . . . . 1 . . . . 2 1 Assault 2 | . . . . . . . . . . . . 2 Garrison 1 | . . . . . . 1 . . . . . . Intercept . | . . . . . . . . . . . . . Searches Triggered . | . . . . . . . . . . . . . Construction Impeded . | . . . . . . . . . . . . . Haulers Reinforced 1 | . . . . . . 1 . . . . . . Active Scanning Responses . | . . . . . . . . . . . . . Cargo Convoy Interrupts . | . . . . . . . . . . . . . Stealth | -11 -10 -10 -7 -7 -5 -4 -4 -4 -4 -3 -3 -2 --------- Run | Yrd Mat Sub Rec Scr Fac Fac Upp Upp Zhi Pro Res Res Distress Signals 8 | . 2 . . . 3 1 . . . . 2 . Communications Jammed . | . . . . . . . . . . . . . Distress Signals . | . . . . . . . . . . . . . Times Spotted 183 | . 17 13 . . 43 8 9 8 . 9 48 28 Peak Tracking Total 20 | . 4 5 . . 11 5 5 6 . 9 20 10 Tactical Retreats 32 | . 4 3 . . 7 1 2 1 . 1 9 4 Traps | -11 -10 -10 -7 -7 -5 -4 -4 -4 -4 -3 -3 -2 ------- Run | Yrd Mat Sub Rec Scr Fac Fac Upp Upp Zhi Pro Res Res Traps Triggered 4 | . 1 . . . . . . . . . 2 1 Indirectly . | . . . . . . . . . . . . . Trap Hack Attempts . | . . . . . . . . . . . . . Triggered . | . . . . . . . . . . . . . Disarmed . | . . . . . . . . . . . . . Reprogrammed . | . . . . . . . . . . . . . Reused . | . . . . . . . . . . . . . Traps Extracted . | . . . . . . . . . . . . . Installed . | . . . . . . . . . . . . . Triggered . | . . . . . . . . . . . . . Machines | -11 -10 -10 -7 -7 -5 -4 -4 -4 -4 -3 -3 -2 ---------- Run | Yrd Mat Sub Rec Scr Fac Fac Upp Upp Zhi Pro Res Res Machines Disabled 6 | . . . . . 5 1 . . . . . . Max in Single Turn 4 | . . . . . 4 1 . . . . . . Garrison Access 2 | . . . . . 1 . . . . . . 1 Machines Repaired . | . . . . . . . . . . . . . Machines Dismantled . | . . . . . . . . . . . . . Machines Sabotaged . | . . . . . . . . . . . . . Overloaded Fab Kills . | . . . . . . . . . . . . . Hacking | -11 -10 -10 -7 -7 -5 -4 -4 -4 -4 -3 -3 -2 --------- Run | Yrd Mat Sub Rec Scr Fac Fac Upp Upp Zhi Pro Res Res Machines Accessed 48 | . 5 . 2 3 18 7 . . 4 1 5 3 Terminals 21 | . 5 . 2 . 6 2 . . . 1 2 3 Fabricators 2 | . . . . . 1 1 . . . . . . Repair Stations 2 | . . . . . 2 . . . . . . . Recycling Units 13 | . . . . . 7 3 . . . . 3 . Scanalyzers . | . . . . . . . . . . . . . Garrison Access 3 | . . . . . 2 1 . . . . . . Total Hacks 125 | . 18 . 4 29 32 12 . . 17 1 8 4 Successful 82 | . 9 . 1 29 15 6 . . 17 1 3 1 Failed 42 | . 8 . 3 . 17 6 . . . . 5 3 Catastrophic 13 | . 1 . 1 . 6 2 . . . . 1 2 Database Lockouts 1 | . 1 . . . . . . . . . . . Manual 61 | . 14 . 3 . 24 9 . . . . 8 3 Terminals 49 | . 18 . 4 . 12 5 . . . 1 5 4 Fabricators 2 | . . . . . 1 1 . . . . . . Repair Stations 4 | . . . . . 4 . . . . . . . Recycling Units 20 | . . . . . 13 4 . . . . 3 . Scanalyzers . | . . . . . . . . . . . . . Garrison Access 4 | . . . . . 2 2 . . . . . . Terminal Hacks 53 | . 3 . . 29 1 1 . . 17 1 . 1 Record 35 | . . . . 29 . . . . 5 1 . . Part Schematic 4 | . . . . . . . . . 4 . . . Robot Analysis 5 | . 1 . . . . . . . 4 . . . Prototype ID Bank 4 | . . . . . . . . . 4 . . . Branch Access Points 1 | . . . . . . . . . . . . 1 Alert Level 1 | . 1 . . . . . . . . . . . Unreport Threat 2 | . . . . . 1 1 . . . . . . Locate Traps 1 | . 1 . . . . . . . . . . . Fabricator Hacks . | . . . . . . . . . . . . . Repair Station Hacks 2 | . . . . . 2 . . . . . . . Scan Component 2 | . . . . . 2 . . . . . . . Recycling Unit Hacks . | . . . . . . . . . . . . . Scanalyzer . | . . . . . . . . . . . . . Garrison Access Hacks 1 | . . . . . 1 . . . . . . . Seal Access 1 | . . . . . 1 . . . . . . . Unauthorized Hacks 26 | . 6 . 1 . 11 5 . . . . 3 . Terminals 13 | . 6 . 1 . 4 2 . . . . . . Track 3 | . 1 . . . 1 1 . . . . . . Botnet 10 | . 5 . 1 . 3 1 . . . . . . Fabricators 1 | . . . . . 1 . . . . . . . Fabnet 1 | . . . . . 1 . . . . . . . Repair Stations . | . . . . . . . . . . . . . Recycling Units 12 | . . . . . 6 3 . . . . 3 . Fedlink 11 | . . . . . 6 3 . . . . 2 . Scrapoids 1 | . . . . . . . . . . . 1 . Scanalyzers . | . . . . . . . . . . . . . Garrison Access . | . . . . . . . . . . . . . Data Cores Recovered 1 | . . . . . . . . . . . 1 . Used 1 | . . . . . . . . . . . 1 . Hacking Detections 29 | . 5 . 2 . 13 4 . . . . 2 3 Full Trace Events 2 | . . . . . 1 . . . . . . 1 Feedback Events . | . . . . . . . . . . . . . Feedback Blocked . | . . . . . . . . . . . . . Robot Schematics Acquired . | . . . . . . . . . . . . . Robots Built . | . . . . . . . . . . . . . Authchips . | . . . . . . . . . . . . . Time . | . . . . . . . . . . . . . Total Robot Build Rating . | . . . . . . . . . . . . . Part Schematics Acquired 4 | . . . . . . . . . 4 . . . Parts Built . | . . . . . . . . . . . . . Authchips . | . . . . . . . . . . . . . Time . | . . . . . . . . . . . . . Total Part Build Rating . | . . . . . . . . . . . . . Parts Repaired . | . . . . . . . . . . . . . Time . | . . . . . . . . . . . . . Parts Recycled . | . . . . . . . . . . . . . Recycled Matter . | . . . . . . . . . . . . . Retrieved Matter . | . . . . . . . . . . . . . Retrieved Components . | . . . . . . . . . . . . . Parts Scanalyzed . | . . . . . . . . . . . . . Part Schematics Acquired . | . . . . . . . . . . . . . Parts Damaged . | . . . . . . . . . . . . . Bothacking | -11 -10 -10 -7 -7 -5 -4 -4 -4 -4 -3 -3 -2 ------------ Run | Yrd Mat Sub Rec Scr Fac Fac Upp Upp Zhi Pro Res Res Used RIF Installer . | . . . . . . . . . . . . . Robots Hacked 1 | . . . . . . . . . . . 1 . Non-combat . | . . . . . . . . . . . . . Combat 1 | . . . . . . . . . . . 1 . Robot Hacks Applied . | . . . . . . . . . . . . . Relay Couplers Released 2 | . . . . . . . . . . . . 2 Machine Destruction 2 | . . . . . . . . . . . . 2 Fabnet Peak Effective % 3 | . . . . . . 3 3 3 3 1 1 . Autooverrided 1 | . . . . . . . . . . . 1 . Robots Rewired . | . . . . . . . . . . . . . Allies Hacked . | . . . . . . . . . . . . . Hacks Repelled . | . . . . . . . . . . . . . Allies | -11 -10 -10 -7 -7 -5 -4 -4 -4 -4 -3 -3 -2 -------- Run | Yrd Mat Sub Rec Scr Fac Fac Upp Upp Zhi Pro Res Res Total Allies 2 | . . . . 1 . . . . . . 1 . Largest Group 1 | . . . . 1 1 . . . . . 1 . Highest-Rated Group 142 | . . . . 65 65 . . . . . 142 . Highest-Rated Ally 142 | . . . . 65 65 . . . . . 142 . Total Orders 3 | . . . . 3 . . . . . . . . EXPLORE 2 | . . . . 2 . . . . . . . . RETURN 1 | . . . . 1 . . . . . . . . Ally Attacks 14 | . . . . . 12 . . . . . 2 . Total Damage 347 | . . . . . 270 . . . . . 77 . Kills 5 | . . . . . 4 . . . . . 1 . Allies Corrupted . | . . . . . . . . . . . . . Allies Melted . | . . . . . . . . . . . . . Intel | -11 -10 -10 -7 -7 -5 -4 -4 -4 -4 -3 -3 -2 ------- Run | Yrd Mat Sub Rec Scr Fac Fac Upp Upp Zhi Pro Res Res Active Infowar (turns) 4070 | 43 428 837 105 427 1228 262 175 104 134 81 246 . Optics 718 | . . 186 105 427 . . . . . . . . Sensors 713 | . . . . . 465 . . . . 3 245 . Terrain 2211 | . . . . . 1228 262 175 104 134 81 227 . Seismic 1122 | 43 428 651 . . . . . . . . . . Machine Analysis 485 | . . . . . . 255 175 55 . . . . Robot Analysis Total 5 | . 1 . . . . . . . 4 . . . Derelict Logs Recovered 8 | . . 1 . 5 . . 1 1 . . . . Drone Launches 2 | . . . . 2 . . . . . . . . Drone Recoveries 2 | . . . . 2 . . . . . . . . Exploration | -11 -10 -10 -7 -7 -5 -4 -4 -4 -4 -3 -3 -2 ------------- Run | Yrd Mat Sub Rec Scr Fac Fac Upp Upp Zhi Pro Res Res Turns Passed 8503 | 142 428 838 105 4276 1399 318 175 104 134 81 361 142 Spaces Moved 8485 | 74 355 508 85 3924 1139 517 342 177 171 254 661 278 Core 1505 | 19 . . . 934 . . . 98 96 . 80 278 Treads 266 | . . 203 . . 63 . . . . . . . Legs . | . . . . . . . . . . . . . Wheels 4417 | 55 355 305 85 2990 627 . . . . . . . Hover 1411 | . . . . . 449 517 342 79 24 . . . Flight 886 | . . . . . . . . . 51 254 581 . Fastest Speed 20 | 50 80 80 120 50 30 33 33 40 29 29 20 50 Average Speed 81 | 72 80 127 120 97 87 39 39 50 47 29 37 50 Slowest Speed 320 | 80 80 160 120 120 320 42 44 111 100 99 102 50 Overloaded Moves 273 | . . . . . 38 51 106 1 . . 77 . Propulsion Burnouts . | . . . . . . . . . . . . . Robots Hopped 2 | . . . . . . . . . . . 2 . Potential Cave-ins 8 | . . . . . 4 . 4 . . . . . Cave-ins Triggered 1 | . . . . . . . 1 . . . . . Exploration Rate (%) 40 | 4 62 23 26 95 43 17 60 43 61 49 27 13 Regions Visited 12 Branch Regions 7 Pre-discovered Areas 9 | . . 1 . 4 1 . . . 3 . . . Known Exits Taken 6 | . . . . 1 1 1 1 . . 1 1 . Unknown Exits Taken 6 | 1 1 1 1 . . . . 1 1 . . . Scrap Searched 11 | . . . . 6 . . 2 1 . 2 . . Spaces Dug 87 | . . . . . 47 17 9 . . . 14 . Terrain Destroyed 138 | . . 1 . . 97 17 9 . . . 14 . Melee 58 | . . . . . 18 17 9 . . . 14 . Projectile 50 | . . 1 . . 49 . . . . . . . AOE 30 | . . . . . 30 . . . . . . . Terrain Rammed . | . . . . . . . . . . . . . Walls Destroyed . | . . . . . . . . . . . . . Machines Disabled . | . . . . . . . . . . . . . Actions | -11 -10 -10 -7 -7 -5 -4 -4 -4 -4 -3 -3 -2 --------- Run | Yrd Mat Sub Rec Scr Fac Fac Upp Upp Zhi Pro Res Res Total 9712 | 116 453 640 87 4389 1404 586 365 196 200 259 736 281 Wait 581 | . 67 49 2 314 97 8 1 8 . . 35 . Move 8468 | 73 354 507 84 3923 1138 516 340 176 170 253 656 278 Hop 2 | . . . . . . . . . . . 2 . Pick Up 141 | 10 5 17 . 73 19 12 2 . . 2 1 . Fast Attach 52 | 3 . . . 6 19 4 1 . 10 1 8 . Attach 39 | 4 . 5 . 5 15 2 . 1 2 1 4 . Detach 5 | . . . . . . 1 . . 2 . 2 . Swap 28 | . 1 11 1 . 7 4 4 . . . . . Drop 146 | 1 1 17 . 68 22 11 6 10 3 2 5 . Fire 137 | 25 25 28 . . 59 . . . . . . . Melee 104 | . . 6 . . 24 28 10 . 13 . 23 . Ram 7 | . . . . . 4 . . . . . . 3 Kick . | . . . . . . . . . . . . . Crush . | . . . . . . . . . . . . . Escape Stasis 1 | . . . . . . . 1 . . . . . Rewire . | . . . . . . . . . . . . . Trap . | . . . . . . . . . . . . . Miscellaneous 1 | . . . . . . . . 1 . . . . Route ------- -11/Scrapyard -10/Materials (discovered 4 exits: [*Mat] / [*Min x2] / [*Sub]) -10/Subcaves (discovered 2 exits: [*Mat] / *Rec) -7/Recycling -7/Scraptown (discovered 2 exits: *Fac x2) -5/Factory (discovered 5 exits: *Fac x3 / *Upp x2) -4/Factory (discovered 2 exits: *Res / *Upp) -4/Upper Caves -4/Upper Caves (discovered 2 exits: Res / *Zhi) -4/Zhirov -3/Proximity Caves -3/Research (discovered 3 exits: *Res x2 / Arm) -2/Research (discovered 2 exits: Qua x2) History --------- Turn | Location | Event 9 | -11/Scrapyard | Discovered new exit (range 15) 143 | -11/Scrapyard | Entered Materials 154 | -10/Materials | Central database locked down 299 | -10/Materials | Destroyed 7 combat bots 315 | -10/Materials | Build established: Mutant 317 | -10/Materials | Discovered new exit (range 9) 362 | -10/Materials | Discovered new exit (range 8) 391 | -10/Materials | Discovered new exit (range 6) 553 | -10/Materials | Discovered new exit (range 15) 571 | -10/Materials | Entered Subcaves 572 | -10/Subcaves | Approached by a straggling Scientist 614 | -10/Subcaves | Learned Materials stockpile data 615 | -10/Subcaves | Shifting Twisted Machinery released Sub. Beam Cannon 818 | -10/Subcaves | Shifting Twisted Machinery released Mak. Spear 819 | -10/Subcaves | Discovered new exit (range 13) 900 | -10/Subcaves | Build established: Scavenger-Mutant 978 | -10/Subcaves | Discovered new exit (range 10) 1180 | -10/Subcaves | Core integrity fell below 50% 1246 | -10/Subcaves | Learned location of Zion (-6) 1246 | -10/Subcaves | Met a Zionite searching for "candidates" 1409 | -10/Subcaves | Entered Recycling 1410 | -7/Recycling | Met a Zionite searching for Scraptown 1484 | -7/Recycling | Scanned before Scraplab entrance 1501 | -7/Recycling | Entered Scraplab 1510 | -7/Recycling | Discovered new exit (range 3) 1514 | -7/Recycling | Entered Scraptown 1675 | -7/Scraptown | Visited Symbiants 1687 | -7/Scraptown | Visited The Evicted 1709 | -7/Scraptown | Visited Awakened 1765 | -7/Scraptown | Scanned Subdweller tech in exchange for log data 1768 | -7/Scraptown | Learned Research terminal intel 1769 | -7/Scraptown | Learned Factory trap positions 1770 | -7/Scraptown | Learned location of 1 exit from Research 1771 | -7/Scraptown | Learned location of 1 exit from Lower Caves 1772 | -7/Scraptown | Learned Research stockpile data 1790 | -7/Scraptown | Discovered new exit (range 5) 2176 | -7/Scraptown | Visited Shadow of the Wyrm 2204 | -7/Scraptown | Visited UFD Registry 2204 | -7/Scraptown | Registered with UFD as "Shadowroller" 2213 | -7/Scraptown | Visited Spacefarers 2230 | -7/Scraptown | Visited SPCMW 2243 | -7/Scraptown | Visited Science Testing Area 2364 | -7/Scraptown | Visited Botcube Research 2392 | -7/Scraptown | Visited DA-N13 Charitable Foundation 2402 | -7/Scraptown | Found DCF Scrap (29 items) 2432 | -7/Scraptown | Visited Scrap Suit Storage 2548 | -7/Scraptown | Visited Cartography Club 2650 | -7/Scraptown | Learned location of Upper Caves (-4) 2650 | -7/Scraptown | Learned location of Archives (-5) 2650 | -7/Scraptown | Learned location of Armory (-3) 2650 | -7/Scraptown | Learned 12 Materials zone layouts 2650 | -7/Scraptown | Learned 8 Factory zone layouts 2650 | -7/Scraptown | Learned 8 Access zone layouts 2650 | -7/Scraptown | Learned 8 Lower Caves zone layouts 2650 | -7/Scraptown | Learned 16 Lower Caves zone layouts 2650 | -7/Scraptown | Learned 16 Upper Caves zone layouts 2650 | -7/Scraptown | Learned 20 Proximity Caves zone layouts 2650 | -7/Scraptown | Learned 24 Proximity Caves zone layouts 2650 | -7/Scraptown | Learned location of 2 exits from Upper Caves 2650 | -7/Scraptown | Learned location of 1 exit from Proximity Caves 2650 | -7/Scraptown | Identified exit to Factory 2877 | -7/Scraptown | Build established: Mutant 3124 | -7/Scraptown | Visited Derelict Rescue Squad 3128 | -7/Scraptown | Found DRS Beacon 3139 | -7/Scraptown | Visited Abandonware Association 3146 | -7/Scraptown | Learned abandonware demo "REPAIR.EXE" 3146 | -7/Scraptown | Learned abandonware demo "POISON.EXE" 3159 | -7/Scraptown | Visited Curators Association 3166 | -7/Scraptown | Visited Chapter 10 3175 | -7/Scraptown | Visited LU-1G1's Boring Crew 3214 | -7/Scraptown | Delivered Scrap Shield to a Scientist 3316 | -7/Scraptown | Found Botcube 3406 | -7/Scraptown | Found Scrap Suit 3931 | -7/Scraptown | Found Scrap Suit 3933 | -7/Scraptown | Found Scrap Suit 3935 | -7/Scraptown | Found Scrap Suit 3942 | -7/Scraptown | Found Scrap Suit 3988 | -7/Scraptown | Found Scrap Suit 3990 | -7/Scraptown | Found Scrap Suit 3992 | -7/Scraptown | Found Scrap Suit 3999 | -7/Scraptown | Found Scrap Suit 4058 | -7/Scraptown | Found Scrap Suit 4060 | -7/Scraptown | Found Scrap Suit 4881 | -7/Scraptown | Visited Scrapoid Pod Storage 4886 | -7/Scraptown | Found Scrapoid Pod 5231 | -7/Scraptown | Botcube activated 5251 | -7/Scraptown | Botcube completed mutation into wheeled form, armed with 2 melee weapons. 5721 | -7/Scraptown | Met Optimus 5721 | -7/Scraptown | Accepted into 0bPrime 5790 | -7/Scraptown | Entered Factory 5790 | -5/Factory | Accompanied by 1 ally 5790 | -5/Factory | Evolved 10 slots: Propulsion x3, Utility x5, Weapon x2 5791 | -5/Factory | Identified exit to Factory 5791 | -5/Factory | Identified exit to Upper Caves 5793 | -5/Factory | Loaded intel: 105 trap records 6342 | -5/Factory | Build established: Derelict-Skirmisher 6555 | -5/Factory | Loaded intel: 8 recycling unit locations 6632 | -5/Factory | Discovered exit to Factory (range 14) 6713 | -5/Factory | Spotted B-75 Beast 6769 | -5/Factory | Lost 7 parts (1p1n3u2w) 6835 | -5/Factory | Learned location of Protoforge (-2) 6943 | -5/Factory | Lost 5 parts (2n1u2w) 6968 | -5/Factory | Build established: Mutant 7160 | -5/Factory | Discovered exit to Factory (range 15) 7189 | -5/Factory | Entered another Factory area 7189 | -4/Factory | Evolved 2 slots: Power x1, Propulsion x1 7190 | -4/Factory | Identified exit to Upper Caves 7344 | -4/Factory | Loaded intel: 8 recycling unit locations 7399 | -4/Factory | Garrison activated, responded to threat 7459 | -4/Factory | Discovered new exit (range 20) 7507 | -4/Factory | Entered Upper Caves 7508 | -4/Upper Caves | Identified exit to Upper Caves 7509 | -4/Upper Caves | UFD Scientist delivered a prototype 7510 | -4/Upper Caves | Found Prototype Protection 7574 | -4/Upper Caves | Found DCF Scrap (14 items) 7669 | -4/Upper Caves | Crushed by falling debris 7670 | -4/Upper Caves | System corruption reached 10% 7682 | -4/Upper Caves | Entered another Upper Caves area 7683 | -4/Upper Caves | Identified exit to Research 7695 | -4/Upper Caves | Activated DRS Beacon 7758 | -4/Upper Caves | Learned location of 1 exit from Research 7768 | -4/Upper Caves | Lost 10 parts (2p6n2u) 7778 | -4/Upper Caves | Discovered new exit (range 17) 7786 | -4/Upper Caves | Entered Zhirov 7786 | -4/Zhirov | Discovered new exit (range 3) 7796 | -4/Zhirov | Met Zhirov 7805 | -4/Zhirov | Learned location of Quarantine (-2) 7805 | -4/Zhirov | Learned location of Testing (-3) 7805 | -4/Zhirov | Learned location of Command (-1) 7813 | -4/Zhirov | Zhirov requested help retrieving the SGEMP Prototype 7820 | -4/Zhirov | Found Alien Artifact 7820 | -4/Zhirov | Identified Integrated Reactor 7820 | -4/Zhirov | Installed Integrated Reactor, increased core energy generation (+10) 7902 | -4/Zhirov | Identified Enh. Scrap Shield 7920 | -4/Zhirov | Entered Proximity Caves 7933 | -3/Proximity Caves | Attacked by a faux Warlord 7938 | -3/Proximity Caves | Spotter reported a threat 7939 | -3/Proximity Caves | Spotter reported a threat 8001 | -3/Proximity Caves | Entered Research 8001 | -3/Research | Evolved 2 slots: Utility x2 8002 | -3/Research | Identified exit to Armory 8003 | -3/Research | Identified exit to Research 8005 | -3/Research | Loaded intel: 20 terminal locations 8037 | -3/Research | Found Prototype Device 8037 | -3/Research | Identified Exp. Focal Shield 8041 | -3/Research | Found Prototype Hackware 8041 | -3/Research | Identified Exp. Hacking Suite 8184 | -3/Research | Loaded intel: 5 recycling unit locations 8276 | -3/Research | Spotted B-86 Titan 8298 | -3/Research | Lost 4 parts (3n1u) 8327 | -3/Research | Core integrity fell below 50% 8358 | -3/Research | Core integrity fell below 20% 8362 | -3/Research | Entered another Research area 8362 | -2/Research | Evolved 2 slots: Propulsion x1, Utility x1 8368 | -2/Research | Lost 5 parts (2n3u) 8438 | -2/Research | Core integrity fell below 50% 8446 | -2/Research | Identified exit to Quarantine 8469 | -2/Research | Core integrity fell below 20% 8504 | -2/Research | Destroyed by S-43 Plague with Heavy Machine Gun Last Messages --------------- 08383_ K-01 Serf destroyed. 08431_ O-32 Director: "IFF HANDSHAKE FAILED. SECURING TERMINAL." 08432_ Connecting with Terminal... 08437_ ALERT: Hostiles spotted, dispatching reinforcements to Terminal R009. 08437_ Penetrated by Slug. 08437_ Slug penetrates Wall. 08446_ Connecting with Terminal... >>Access(Branch) Found 2 branch access points: (183,166) Quarantine (188,32) Quarantine Map updated. 08449_ System corrupted: Energy discharge (-29). 08449_ Penetrated by Slug. 08450_ Slug penetrates H-88 Terminator. 08456_ S-43 Plague destroyed. 08464_ Slammed into R-10 Processor. 08474_ K-01 Serf cleans the Terminal. Map ----- +----------------------------------------------------+ | #???????????????? | | #???????????????? | | # ####+########################???????????????? | | # #? ?????????????????????????????????????? | | # # ???????????????????????????????????? | | # # ?????????????????????????????????? | | # # #????????????????????????????????? | | # # #????????????????????????????????? | | # # #????????????????????????????????? | | # # #????????????????????????????????? | | # # +????????????????????????????????? | | # # #????????????????????????????????? | | # # #????????????????????????????????? | | # # #????????????????????????????????? | | # # #????????????????????????????????? | | # # #???????????#????????????????????? | | # # ????????????? #########????????????? | | # #? ??????????????? ?????????????? | | # #????????????????????? k ??????????????? | | + #???????#####?##+##### ?????????????? | | # ######### ### k #??????????????? | | # " ] #??????????????? | | # ######### ### + ?????????????? | | ######??????###+##?## ####?????????????????? | | ????????????# ??#s #????????????????????? | | ????????????# ??# @ #????????????????????? | | ????????????# ?# #????????????????????? | | ????????????# ##s #????????????????????? | | ????????????# s #????????????????????? | | ????????????# ##+#######????????????????????? | | ????????????######## ?????????????????????????? | | ???????????????????# ! ???????????????????????? | | ???????????????????# #??????????????????????? | | ???????????????????# #??????????????????????? | | ???????????????????# #??????????????????????? | | ???????????????????# #??????????????????????? | | ???????????????????########??????????????????????? | | ?????????????????????????????????????????????????? | | ?????????????????????????????????????????????????? | | ?????????????????????????????????????????????????? | | ?????????????????????????????????????????????????? | | ?????????????????????????????????????????????????? | | ?????????????????????????????????????????????????? | | ?????????????????????????????????????????????????? | | ?????????????????????????????????????????????????? | | ?????????????????????????????????????????????????? | | ?????????????????????????????????????????????????? | | ?????????????????????????????????????????????????? | | ?????????????????????????????????????????????????? | | ?????????????????????????????????????????????????? | +----------------------------------------------------+ Best States ------------- Heat Dissipation 54 Coolant Potential 50 Energy Generation 37 Energy Capacity 675 Matter Stores 300 Matter Capacity 300 Sight Range 21 Robot Scan Range 19 Terrain Scan Range 20 Terrain Scan Density 410 Armor Coverage 800 Weapon Shielding 90 Evasion (%) 64 Targeting Accuracy 8 Melee Accuracy 19 Target Analysis 6 Recoil Reduction 2 Energy Filtering 30 Particle Charging 20 Offensive Hacking 16 Defensive Hacking 14 Item Schematics ----------------- Assault Drone Bay | -4/Zhirov | Free Exp. Heat Sink | -4/Zhirov | Free Exp. Optical Array | -4/Zhirov | Free Imp. Arc Thrower | -4/Zhirov | Free Robot Schematics ------------------ None Fabricated ------------ Nothing Repaired ---------- Nothing Alien Tech Used ----------------- Integrated Reactor Achievements -------------- None Challenges ------------ None Game ------ Seed ArchitectSensorGreatsword Manual? 0 Play Time 01:45:37 Cumulative 378.1 hours Start 2025.06.14 @ 10:39:44 End 2025.06.14 @ 19:54:16 Sessions 11 Manual Loads 0 Difficulty Rogue Special Mode None Game No. 423 Rogue 423 Adventurer 0 Explorer 0 Win Type - Total 6 Types 3/1/1/1/0/0/0/0/0/0 Lore% 69 Gallery% 71 Achievement% 68 Wizard Run 0 Options --------- Layout 1 ASCII 0 Keyboard 0 Movement Numpad Keybinds 0 Fullscreen 1 Font 32/SmallcapsGlow Map View 50x35 Zoom Use 0% Tactical HUD 1 Map Filters NONE Filters NONE Steam 1 RUN: 22b42326-7e85-4dce-a658-eb0fffb69c1e